[Event "Early-Titled-Tuesday-Blitz-April-16-2024"]
[Site "Chess.com"]
[Date "2024.04.16"]
[Round "9"]
[White "Veleamater"]
[Black "GeorgiosSouleidis"]
[Result "0-1"]
[WhiteElo "2432"]
[BlackElo "2665"]
[TimeControl "180+1"]
[EndTime "9:49:40 PDT"]
[Termination "GeorgiosSouleidis won by checkmate"]

1. g3 {[%clk 0:03:00.9]} 1... d5 {[%clk 0:02:59.2]} 2. Bg2 {[%clk 0:03:01.3]}
2... Nf6 {[%clk 0:02:59.8]} 3. d3 {[%clk 0:03:01.9]} 3... c6 {[%clk 0:03:00]} 4.
h3 {[%clk 0:03:00.2]} 4... e5 {[%clk 0:02:59.6]} 5. Nf3 {[%clk 0:02:59.9]} 5...
Bd6 {[%clk 0:03:00]} 6. O-O {[%clk 0:02:59.8]} 6... O-O {[%clk 0:03:00.6]} 7.
Nc3 {[%clk 0:03:00.3]} 7... Nbd7 {[%clk 0:02:59.5]} 8. e4 {[%clk 0:03:00.1]}
8... Re8 {[%clk 0:02:36.3]} 9. Nd2 {[%clk 0:02:59.4]} 9... Nb6 {[%clk
0:02:31.5]} 10. f4 {[%clk 0:02:58.6]} 10... dxe4 {[%clk 0:02:20.8]} 11. dxe4
{[%clk 0:02:56.3]} 11... Qe7 {[%clk 0:02:04.3]} 12. f5 {[%clk 0:02:56.1]} 12...
Bc5+ {[%clk 0:01:53.4]} 13. Kh2 {[%clk 0:02:56.2]} 13... a5 {[%clk 0:01:53.6]}
14. a3 {[%clk 0:02:49.9]} 14... a4 {[%clk 0:01:39.7]} 15. Qf3 {[%clk 0:02:44.3]}
15... Rd8 {[%clk 0:01:22.4]} 16. g4 {[%clk 0:02:42.5]} 16... Ne8 {[%clk
0:01:18.2]} 17. Qg3 {[%clk 0:02:41.5]} 17... f6 {[%clk 0:01:13.1]} 18. h4 {[%clk
0:02:41.2]} 18... Nd6 {[%clk 0:01:08.1]} 19. g5 {[%clk 0:02:34.1]} 19... Kh8
{[%clk 0:01:07]} 20. g6 {[%clk 0:02:33.8]} 20... h6 {[%clk 0:01:02]} 21. Kh1
{[%clk 0:02:29.9]} 21... Ndc4 {[%clk 0:00:58.3]} 22. Nxc4 {[%clk 0:02:28.8]}
22... Nxc4 {[%clk 0:00:59.2]} 23. Qe1 {[%clk 0:02:17.9]} 23... b5 {[%clk
0:00:58.2]} 24. Rf3 {[%clk 0:02:17.9]} 24... Bb7 {[%clk 0:00:51.8]} 25. Bf1
{[%clk 0:02:17.6]} 25... Nd6 {[%clk 0:00:46.2]} 26. Bd3 {[%clk 0:02:10.1]} 26...
Rd7 {[%clk 0:00:46.1]} 27. Qg3 {[%clk 0:02:08.2]} 27... Rad8 {[%clk 0:00:44.3]}
28. Qg4 {[%clk 0:02:08.3]} 28... Bd4 {[%clk 0:00:39.6]} 29. Ne2 {[%clk
0:02:07.9]} 29... Bb6 {[%clk 0:00:39.1]} 30. Ng3 {[%clk 0:02:05.9]} 30... Ne8
{[%clk 0:00:37.5]} 31. Qh5 {[%clk 0:02:03.5]} 31... Qf8 {[%clk 0:00:35.6]} 32.
Qg4 {[%clk 0:01:48.2]} 32... Ba6 {[%clk 0:00:35.8]} 33. Nf1 {[%clk 0:01:34.1]}
33... Ba7 {[%clk 0:00:35.6]} 34. Nh2 {[%clk 0:01:34.1]} 34... c5 {[%clk
0:00:35.6]} 35. Be3 {[%clk 0:01:32.7]} 35... c4 {[%clk 0:00:36]} 36. Be2 {[%clk
0:01:31.6]} 36... Bxe3 {[%clk 0:00:34.5]} 37. Rxe3 {[%clk 0:01:31.5]} 37... Qc5
{[%clk 0:00:33.8]} 38. Rg3 {[%clk 0:01:18.1]} 38... Rd2 {[%clk 0:00:33.9]} 39.
Qh5 {[%clk 0:01:10.7]} 39... Bb7 {[%clk 0:00:31.6]} 40. Bf3 {[%clk 0:01:07.5]}
40... Rxc2 {[%clk 0:00:24.3]} 41. Rag1 {[%clk 0:01:06.9]} 41... Qf8 {[%clk
0:00:14.2]} 42. Ng4 {[%clk 0:01:05.8]} 42... Rd7 {[%clk 0:00:10]} 43. R3g2
{[%clk 0:00:58.3]} 43... Rxg2 {[%clk 0:00:09.4]} 44. Rxg2 {[%clk 0:00:58.8]}
44... Kg8 {[%clk 0:00:08.1]} 45. Ne3 {[%clk 0:00:57.9]} 45... Qc5 {[%clk
0:00:06.5]} 46. Nd5 {[%clk 0:00:57.3]} 46... Bxd5 {[%clk 0:00:07]} 47. exd5
{[%clk 0:00:57.7]} 47... Nd6 {[%clk 0:00:07]} 48. Qg4 {[%clk 0:00:56.3]} 48...
Re7 {[%clk 0:00:06.2]} 49. Re2 {[%clk 0:00:56.3]} 49... Ne8 {[%clk 0:00:02]} 50.
Qe4 {[%clk 0:00:38.1]} 50... Nd6 {[%clk 0:00:02.2]} 51. Qc2 {[%clk 0:00:38.2]}
51... Rc7 {[%clk 0:00:02.5]} 52. Bg2 {[%clk 0:00:34.6]} 52... Kf8 {[%clk
0:00:03]} 53. Qc3 {[%clk 0:00:34.8]} 53... Qd4 {[%clk 0:00:02.3]} 54. Qb4 {[%clk
0:00:34.6]} 54... Qxh4+ {[%clk 0:00:02]} 55. Kg1 {[%clk 0:00:34.8]} 55... Ke7
{[%clk 0:00:01.7]} 56. Qa5 {[%clk 0:00:31.9]} 56... Qd4+ {[%clk 0:00:01.9]} 57.
Kf1 {[%clk 0:00:30.9]} 57... Qa7 {[%clk 0:00:02.8]} 58. Qb4 {[%clk 0:00:30.7]}
58... Qc5 {[%clk 0:00:03.2]} 59. Qa5 {[%clk 0:00:30.6]} 59... c3 {[%clk
0:00:03.7]} 60. bxc3 {[%clk 0:00:30.2]} 60... Qxc3 {[%clk 0:00:04.6]} 61. Qxb5
{[%clk 0:00:30.5]} 61... Nxb5 {[%clk 0:00:04.2]} 62. d6+ {[%clk 0:00:30.8]}
62... Nxd6 {[%clk 0:00:04.7]} 63. Bd5 {[%clk 0:00:30.3]} 63... Qc1+ {[%clk
0:00:05.3]} 64. Kf2 {[%clk 0:00:30.7]} 64... Qf4+ {[%clk 0:00:06]} 65. Ke1
{[%clk 0:00:31.3]} 65... Rc1# {[%clk 0:00:06.3]} 0-1

[Event "Early-Titled-Tuesday-Blitz-April-16-2024"]
[Site "Chess.com"]
[Date "2024.04.16"]
[Round "9"]
[White "Acva-Alenok"]
[Black "jbking07"]
[Result "1-0"]
[WhiteElo "2328"]
[BlackElo "2410"]
[TimeControl "180+1"]
[EndTime "9:49:40 PDT"]
[Termination "Acva-Alenok won on time"]

1. d4 {[%clk 0:03:00.9]} 1... d5 {[%clk 0:01:57.1]} 2. c4 {[%clk 0:03:00.2]}
2... e6 {[%clk 0:01:57.3]} 3. Nf3 {[%clk 0:03:00.3]} 3... Nf6 {[%clk 0:01:56.3]}
4. g3 {[%clk 0:03:00.8]} 4... Be7 {[%clk 0:01:55.6]} 5. Bg2 {[%clk 0:03:01.2]}
5... O-O {[%clk 0:01:55.1]} 6. O-O {[%clk 0:03:01.8]} 6... dxc4 {[%clk
0:01:55.3]} 7. Ne5 {[%clk 0:03:02.3]} 7... c5 {[%clk 0:01:44.7]} 8. dxc5 {[%clk
0:03:02]} 8... Qc7 {[%clk 0:01:38.2]} 9. Nxc4 {[%clk 0:03:01.3]} 9... Qxc5
{[%clk 0:01:38.4]} 10. Nba3 {[%clk 0:02:49.8]} 10... Nc6 {[%clk 0:01:31.1]} 11.
Be3 {[%clk 0:02:10.7]} 11... Qf5 {[%clk 0:01:25.1]} 12. Qc2 {[%clk 0:02:00.6]}
12... Qxc2 {[%clk 0:01:11.4]} 13. Nxc2 {[%clk 0:02:01.5]} 13... Nd5 {[%clk
0:00:44.8]} 14. Bd2 {[%clk 0:01:59.6]} 14... Bf6 {[%clk 0:00:44.6]} 15. e4
{[%clk 0:01:57.7]} 15... Nb6 {[%clk 0:00:42.1]} 16. N2e3 {[%clk 0:01:34.7]}
16... Nd4 {[%clk 0:00:35.8]} 17. e5 {[%clk 0:01:28.5]} 17... Bg5 {[%clk
0:00:35]} 18. f4 {[%clk 0:01:23.1]} 18... Be7 {[%clk 0:00:34.4]} 19. Rfd1 {[%clk
0:01:18.9]} 19... Bc5 {[%clk 0:00:29]} 20. b4 {[%clk 0:01:13.2]} 20... Nxc4
{[%clk 0:00:25.1]} 21. bxc5 {[%clk 0:01:09.1]} 21... Nxe3 {[%clk 0:00:20.4]} 22.
Bxe3 {[%clk 0:01:08]} 22... Nc2 {[%clk 0:00:21.3]} 23. c6 {[%clk 0:00:55.7]}
23... bxc6 {[%clk 0:00:17.5]} 24. Bc5 {[%clk 0:00:52]} 24... Nxa1 {[%clk
0:00:11.1]} 25. Bxc6 {[%clk 0:00:44.5]} 25... Ba6 {[%clk 0:00:07.3]} 26. Bxf8
{[%clk 0:00:30]} 26... Kxf8 {[%clk 0:00:08.2]} 27. Rxa1 {[%clk 0:00:29.6]} 27...
Rc8 {[%clk 0:00:07.8]} 28. Be4 {[%clk 0:00:29.3]} 28... Ke7 {[%clk 0:00:07.6]}
29. Rb1 {[%clk 0:00:25.3]} 29... Rc7 {[%clk 0:00:07.7]} 30. Rb3 {[%clk
0:00:21.7]} 30... Bc4 {[%clk 0:00:07.7]} 31. Rc3 {[%clk 0:00:20.6]} 31... Kd8
{[%clk 0:00:06]} 32. a3 {[%clk 0:00:19.8]} 32... Ba2 {[%clk 0:00:05.3]} 33. Rxc7
{[%clk 0:00:19.6]} 33... Kxc7 {[%clk 0:00:06.2]} 34. Bxh7 {[%clk 0:00:19.6]}
34... g6 {[%clk 0:00:06]} 35. Bg8 {[%clk 0:00:20.1]} 35... Kd7 {[%clk
0:00:02.3]} 36. Bxf7 {[%clk 0:00:20.6]} 36... Bb1 {[%clk 0:00:03.2]} 37. h4
{[%clk 0:00:17.7]} 37... Ke7 {[%clk 0:00:03.3]} 38. Bg8 {[%clk 0:00:17.3]} 38...
Kf8 {[%clk 0:00:03]} 39. Bxe6 {[%clk 0:00:16.9]} 39... Ke7 {[%clk 0:00:03.1]}
40. Bc4 {[%clk 0:00:17.4]} 40... a5 {[%clk 0:00:04]} 41. Kf2 {[%clk 0:00:17.2]}
41... Bf5 {[%clk 0:00:04.5]} 42. Ke3 {[%clk 0:00:17.5]} 42... Bc8 {[%clk
0:00:05.4]} 43. Bd3 {[%clk 0:00:17.4]} 43... Kf7 {[%clk 0:00:05.1]} 44. h5
{[%clk 0:00:16.7]} 44... gxh5 {[%clk 0:00:05]} 45. f5 {[%clk 0:00:17.4]} 45...
Ke7 {[%clk 0:00:04.9]} 46. Kf4 {[%clk 0:00:17.8]} 46... h4 {[%clk 0:00:02.5]}
47. gxh4 {[%clk 0:00:17.4]} 47... Bd7 {[%clk 0:00:03.1]} 48. f6+ {[%clk
0:00:17.6]} 1-0

[Event "Early-Titled-Tuesday-Blitz-April-16-2024"]
[Site "Chess.com"]
[Date "2024.04.16"]
[Round "9"]
[White "tarno17"]
[Black "Tol_Tol"]
[Result "0-1"]
[WhiteElo "2127"]
[BlackElo "2392"]
[TimeControl "180+1"]
[EndTime "9:49:42 PDT"]
[Termination "Tol_Tol won by checkmate"]

1. e4 {[%clk 0:03:00.9]} 1... c5 {[%clk 0:02:59.6]} 2. Nf3 {[%clk 0:03:01]} 2...
Nc6 {[%clk 0:02:59.3]} 3. Bb5 {[%clk 0:03:00.8]} 3... e6 {[%clk 0:02:59.3]} 4.
O-O {[%clk 0:02:59.9]} 4... Nge7 {[%clk 0:02:59.2]} 5. c3 {[%clk 0:02:58]} 5...
a6 {[%clk 0:02:59.4]} 6. Ba4 {[%clk 0:02:57.2]} 6... b5 {[%clk 0:03:00]} 7. Bc2
{[%clk 0:02:53.7]} 7... Bb7 {[%clk 0:03:00.9]} 8. Re1 {[%clk 0:02:52.1]} 8...
Ng6 {[%clk 0:02:59.7]} 9. d4 {[%clk 0:02:36.6]} 9... cxd4 {[%clk 0:02:59.4]} 10.
cxd4 {[%clk 0:02:35.8]} 10... Be7 {[%clk 0:02:59.9]} 11. Nbd2 {[%clk 0:02:33.5]}
11... O-O {[%clk 0:02:59.4]} 12. Nf1 {[%clk 0:02:32.8]} 12... d5 {[%clk
0:02:55.7]} 13. e5 {[%clk 0:02:31.3]} 13... Rc8 {[%clk 0:02:43.8]} 14. Ng3
{[%clk 0:02:24.8]} 14... a5 {[%clk 0:02:38.8]} 15. Be3 {[%clk 0:02:18.3]} 15...
a4 {[%clk 0:02:32.5]} 16. Rc1 {[%clk 0:02:14.7]} 16... Na5 {[%clk 0:02:31.1]}
17. Bb1 {[%clk 0:02:08.5]} 17... Nc4 {[%clk 0:02:29.6]} 18. b3 {[%clk
0:02:01.7]} 18... axb3 {[%clk 0:02:26.1]} 19. axb3 {[%clk 0:02:02.6]} 19... Nxe3
{[%clk 0:02:25.4]} 20. Rxe3 {[%clk 0:01:59.4]} 20... Qb6 {[%clk 0:02:16.1]} 21.
Rec3 {[%clk 0:01:50.9]} 21... b4 {[%clk 0:02:14.8]} 22. Rxc8 {[%clk 0:01:34.3]}
22... Rxc8 {[%clk 0:02:15]} 23. h3 {[%clk 0:01:03.7]} 23... Rc3 {[%clk
0:01:59.9]} 24. Ne2 {[%clk 0:00:54]} 24... Rxf3 {[%clk 0:01:29.6]} 25. gxf3
{[%clk 0:00:52.9]} 25... Nh4 {[%clk 0:01:25.1]} 26. Ng3 {[%clk 0:00:31.9]} 26...
g6 {[%clk 0:01:21.3]} 27. Bd3 {[%clk 0:00:20.8]} 27... Bg5 {[%clk 0:01:19.8]}
28. Rc5 {[%clk 0:00:16.2]} 28... Be7 {[%clk 0:01:12.4]} 29. Rb5 {[%clk
0:00:14.5]} 29... Qc7 {[%clk 0:00:58.1]} 30. Qc2 {[%clk 0:00:11]} 30... Qd7
{[%clk 0:00:47.6]} 31. Be2 {[%clk 0:00:08.1]} 31... Kg7 {[%clk 0:00:42.4]} 32.
Qd3 {[%clk 0:00:03]} 32... Ba6 {[%clk 0:00:40.2]} 33. Nf1 {[%clk 0:00:01.8]}
33... Bxb5 {[%clk 0:00:39.3]} 34. Qxb5 {[%clk 0:00:02.7]} 34... Qxb5 {[%clk
0:00:36.9]} 35. Bxb5 {[%clk 0:00:03.6]} 35... Nxf3+ {[%clk 0:00:37.5]} 36. Kg2
{[%clk 0:00:04.1]} 36... Nxd4 {[%clk 0:00:38.4]} 37. Bd7 {[%clk 0:00:03.8]}
37... Nxb3 {[%clk 0:00:37.7]} 38. Ne3 {[%clk 0:00:04.2]} 38... Nd2 {[%clk
0:00:35.6]} 39. Ba4 {[%clk 0:00:04.2]} 39... b3 {[%clk 0:00:35.8]} 40. Nd1
{[%clk 0:00:04.1]} 40... Ba3 {[%clk 0:00:34.5]} 41. Bxb3 {[%clk 0:00:02.9]}
41... Nxb3 {[%clk 0:00:34.4]} 42. f4 {[%clk 0:00:03.8]} 42... Bc1 {[%clk
0:00:29.2]} 43. Kf3 {[%clk 0:00:03.8]} 43... Nd4+ {[%clk 0:00:28.9]} 44. Kg4
{[%clk 0:00:04.3]} 44... h5+ {[%clk 0:00:28.4]} 45. Kg3 {[%clk 0:00:04.6]} 45...
Ne2+ {[%clk 0:00:27.3]} 46. Kf3 {[%clk 0:00:04.7]} 46... Nxf4 {[%clk 0:00:27.2]}
47. Nf2 {[%clk 0:00:05.2]} 47... g5 {[%clk 0:00:24.7]} 48. Nh1 {[%clk
0:00:04.2]} 48... Kg6 {[%clk 0:00:24.7]} 49. Ng3 {[%clk 0:00:04.7]} 49... Nd3
{[%clk 0:00:21.7]} 50. Ke2 {[%clk 0:00:04.2]} 50... Nxe5 {[%clk 0:00:21.5]} 51.
h4 {[%clk 0:00:04.7]} 51... gxh4 {[%clk 0:00:20.7]} 52. Kf1 {[%clk 0:00:05.4]}
52... hxg3 {[%clk 0:00:20.6]} 53. Kg2 {[%clk 0:00:06.3]} 53... h4 {[%clk
0:00:20.3]} 54. Kh3 {[%clk 0:00:05.2]} 54... Kg5 {[%clk 0:00:20.7]} 55. Kg2
{[%clk 0:00:05.1]} 55... Kg4 {[%clk 0:00:21.3]} 56. Kh1 {[%clk 0:00:05.4]} 56...
h3 {[%clk 0:00:20.8]} 57. Kg1 {[%clk 0:00:04.9]} 57... Be3+ {[%clk 0:00:21.7]}
58. Kh1 {[%clk 0:00:05.4]} 58... g2+ {[%clk 0:00:21.7]} 59. Kh2 {[%clk
0:00:06.1]} 59... g1=Q# {[%clk 0:00:22.4]} 0-1

[Event "Early-Titled-Tuesday-Blitz-April-16-2024"]
[Site "Chess.com"]
[Date "2024.04.16"]
[Round "9"]
[White "vasblesk"]
[Black "albi1999"]
[Result "1-0"]
[WhiteElo "2826"]
[BlackElo "2654"]
[TimeControl "180+1"]
[EndTime "9:49:43 PDT"]
[Termination "vasblesk won on time"]

1. d4 {[%clk 0:03:00.9]} 1... Nf6 {[%clk 0:02:59.8]} 2. c4 {[%clk 0:03:00.8]}
2... c6 {[%clk 0:02:56.1]} 3. Nc3 {[%clk 0:02:54.4]} 3... d5 {[%clk 0:02:56.1]}
4. cxd5 {[%clk 0:02:55.1]} 4... cxd5 {[%clk 0:02:56.6]} 5. Bf4 {[%clk
0:02:55.9]} 5... Nc6 {[%clk 0:02:56.3]} 6. Rc1 {[%clk 0:02:56.5]} 6... Qb6
{[%clk 0:02:50.5]} 7. e3 {[%clk 0:02:52.2]} 7... Bg4 {[%clk 0:02:41.9]} 8. f3
{[%clk 0:02:45.8]} 8... Bd7 {[%clk 0:02:36.6]} 9. Qd2 {[%clk 0:02:43.7]} 9... e6
{[%clk 0:02:35.3]} 10. Bd3 {[%clk 0:02:40.4]} 10... Nh5 {[%clk 0:02:24.6]} 11.
Bg5 {[%clk 0:02:38.4]} 11... Bd6 {[%clk 0:02:24.1]} 12. Nge2 {[%clk 0:02:33.4]}
12... h6 {[%clk 0:02:23]} 13. Bh4 {[%clk 0:02:31.1]} 13... Rc8 {[%clk
0:02:20.2]} 14. O-O {[%clk 0:02:29.3]} 14... Ne7 {[%clk 0:02:12.1]} 15. Kh1
{[%clk 0:02:03.8]} 15... Nf6 {[%clk 0:02:10]} 16. e4 {[%clk 0:02:01.4]} 16...
Bb4 {[%clk 0:01:54.4]} 17. e5 {[%clk 0:01:56.6]} 17... Nh7 {[%clk 0:01:43.7]}
18. a3 {[%clk 0:01:47]} 18... Bxc3 {[%clk 0:01:43.6]} 19. bxc3 {[%clk
0:01:47.9]} 19... Nf8 {[%clk 0:01:40.5]} 20. f4 {[%clk 0:01:44.6]} 20... Nfg6
{[%clk 0:01:37.7]} 21. Bf2 {[%clk 0:01:43.2]} 21... h5 {[%clk 0:01:34.7]} 22.
Kg1 {[%clk 0:01:32.6]} 22... Qa5 {[%clk 0:01:32.7]} 23. Qb2 {[%clk 0:01:29.3]}
23... Rc7 {[%clk 0:01:29]} 24. g3 {[%clk 0:01:25.5]} 24... a6 {[%clk 0:01:25.2]}
25. h3 {[%clk 0:01:24.4]} 25... O-O {[%clk 0:01:16.9]} 26. g4 {[%clk 0:01:23]}
26... hxg4 {[%clk 0:01:17.8]} 27. hxg4 {[%clk 0:01:23.9]} 27... Bb5 {[%clk
0:01:17.6]} 28. Bxg6 {[%clk 0:01:12.8]} 28... fxg6 {[%clk 0:01:13.1]} 29. Be1
{[%clk 0:01:06.6]} 29... Qa4 {[%clk 0:01:08.9]} 30. Rf2 {[%clk 0:01:04.3]} 30...
Qc4 {[%clk 0:01:07.4]} 31. Ng3 {[%clk 0:00:47]} 31... Qd3 {[%clk 0:01:06.2]} 32.
Kg2 {[%clk 0:00:46.7]} 32... Nc6 {[%clk 0:00:55.9]} 33. Rf3 {[%clk 0:00:27.8]}
33... Qc4 {[%clk 0:00:53]} 34. Bd2 {[%clk 0:00:26.8]} 34... Rcf7 {[%clk
0:00:47.3]} 35. Qb1 {[%clk 0:00:21.7]} 35... Ne7 {[%clk 0:00:39.8]} 36. Rh1
{[%clk 0:00:20]} 36... Qa4 {[%clk 0:00:25.2]} 37. Bc1 {[%clk 0:00:19.9]} 37...
Bc4 {[%clk 0:00:19.6]} 38. Qb2 {[%clk 0:00:13.7]} 38... Qb5 {[%clk 0:00:16.8]}
39. Qd2 {[%clk 0:00:13.6]} 39... Rc8 {[%clk 0:00:08.5]} 40. Kg1 {[%clk
0:00:11.8]} 40... Qb3 {[%clk 0:00:05.3]} 41. Qh2 {[%clk 0:00:09.3]} 41... Kf8
{[%clk 0:00:04.9]} 42. Qh8+ {[%clk 0:00:04.9]} 42... Ng8 {[%clk 0:00:05.1]} 43.
Qh7 {[%clk 0:00:05.8]} 43... Qd1+ {[%clk 0:00:04.7]} 44. Kg2 {[%clk 0:00:06.5]}
44... Qc2+ {[%clk 0:00:05]} 45. Kh3 {[%clk 0:00:06.5]} 45... Bd3 {[%clk
0:00:04.7]} 46. f5 {[%clk 0:00:04.8]} 46... gxf5 {[%clk 0:00:04.1]} 47. gxf5
{[%clk 0:00:04.5]} 47... exf5 {[%clk 0:00:04.7]} 48. e6 {[%clk 0:00:04]} 48...
Rf6 {[%clk 0:00:05.1]} 49. Bg5 {[%clk 0:00:03.4]} 49... f4 {[%clk 0:00:04.7]}
50. Qh4 {[%clk 0:00:04.1]} 50... Rg6 {[%clk 0:00:02.6]} 51. Rxf4+ {[%clk
0:00:04.4]} 51... Ke8 {[%clk 0:00:02.4]} 52. Qh5 {[%clk 0:00:04.2]} 1-0

[Event "Early-Titled-Tuesday-Blitz-April-16-2024"]
[Site "Chess.com"]
[Date "2024.04.16"]
[Round "9"]
[White "Szparu"]
[Black "DominguezOnYoutube"]
[Result "1-0"]
[WhiteElo "2879"]
[BlackElo "2942"]
[TimeControl "180+1"]
[EndTime "9:49:46 PDT"]
[Termination "Szparu won on time"]

1. e4 {[%clk 0:03:00.9]} 1... c5 {[%clk 0:02:58.9]} 2. c3 {[%clk 0:02:59.7]}
2... Nf6 {[%clk 0:02:58.5]} 3. e5 {[%clk 0:03:00.1]} 3... Nd5 {[%clk 0:02:59.1]}
4. d4 {[%clk 0:03:00.7]} 4... cxd4 {[%clk 0:02:58.3]} 5. Nf3 {[%clk 0:03:01.4]}
5... d6 {[%clk 0:02:58]} 6. cxd4 {[%clk 0:03:01.1]} 6... dxe5 {[%clk 0:02:55.8]}
7. Nxe5 {[%clk 0:02:55]} 7... Nc6 {[%clk 0:02:50.8]} 8. Bc4 {[%clk 0:02:45.3]}
8... e6 {[%clk 0:02:38.4]} 9. O-O {[%clk 0:02:45.1]} 9... Be7 {[%clk 0:02:36.1]}
10. Nf3 {[%clk 0:02:42.1]} 10... O-O {[%clk 0:02:34.7]} 11. Nc3 {[%clk
0:02:41.1]} 11... Nxc3 {[%clk 0:02:22.7]} 12. bxc3 {[%clk 0:02:41.3]} 12... b6
{[%clk 0:02:23.2]} 13. Bd3 {[%clk 0:02:28.3]} 13... Bb7 {[%clk 0:02:22.8]} 14.
Qc2 {[%clk 0:02:22.2]} 14... g6 {[%clk 0:01:56.2]} 15. Bh6 {[%clk 0:02:21.7]}
15... Re8 {[%clk 0:01:56.5]} 16. Rad1 {[%clk 0:02:20.7]} 16... Rc8 {[%clk
0:01:54]} 17. Qe2 {[%clk 0:02:20.4]} 17... Bf6 {[%clk 0:01:47.7]} 18. Rfe1
{[%clk 0:02:17.7]} 18... Ne7 {[%clk 0:01:40.5]} 19. Bb5 {[%clk 0:01:56.5]} 19...
Bc6 {[%clk 0:01:29]} 20. Ba6 {[%clk 0:01:56.6]} 20... Rc7 {[%clk 0:01:26.1]} 21.
Bf4 {[%clk 0:01:48.9]} 21... Rd7 {[%clk 0:01:15.9]} 22. Ne5 {[%clk 0:01:48.9]}
22... Bxe5 {[%clk 0:01:16]} 23. Bxe5 {[%clk 0:01:43.9]} 23... Nd5 {[%clk
0:01:16]} 24. Qb2 {[%clk 0:01:30.9]} 24... Qg5 {[%clk 0:01:13.2]} 25. Bf1 {[%clk
0:01:28.1]} 25... Nf4 {[%clk 0:01:03.3]} 26. g3 {[%clk 0:01:22.8]} 26... Nd5
{[%clk 0:00:47.1]} 27. c4 {[%clk 0:01:22]} 27... Ne7 {[%clk 0:00:42]} 28. d5
{[%clk 0:01:22.2]} 28... exd5 {[%clk 0:00:41.1]} 29. Bh3 {[%clk 0:00:51.1]}
29... Rb7 {[%clk 0:00:17.6]} 30. Bf6 {[%clk 0:00:49.6]} 30... Qh5 {[%clk
0:00:17]} 31. Bg2 {[%clk 0:00:49.5]} 31... Nf5 {[%clk 0:00:08.8]} 32. cxd5
{[%clk 0:00:49.1]} 32... Rxe1+ {[%clk 0:00:07.2]} 33. Rxe1 {[%clk 0:00:49.4]}
33... Bd7 {[%clk 0:00:07.3]} 34. Qe5 {[%clk 0:00:47.5]} 34... Qh6 {[%clk
0:00:02.8]} 35. g4 {[%clk 0:00:36.1]} 35... Nh4 {[%clk 0:00:02.6]} 36. Qe8+
{[%clk 0:00:33.1]} 36... Bxe8 {[%clk 0:00:03.1]} 37. Rxe8+ {[%clk 0:00:33.6]}
37... Qf8 {[%clk 0:00:03.9]} 38. Rxf8+ {[%clk 0:00:34.1]} 38... Kxf8 {[%clk
0:00:04.8]} 39. Bxh4 {[%clk 0:00:34.6]} 39... Rc7 {[%clk 0:00:05.3]} 40. Bf3
{[%clk 0:00:27.4]} 40... Rc1+ {[%clk 0:00:05.4]} 41. Kg2 {[%clk 0:00:27.5]}
41... Rc2 {[%clk 0:00:05.5]} 42. a4 {[%clk 0:00:18.9]} 42... Ke8 {[%clk
0:00:05.5]} 43. Bg3 {[%clk 0:00:16.8]} 43... Kd7 {[%clk 0:00:05.2]} 44. Bb8
{[%clk 0:00:16.6]} 44... g5 {[%clk 0:00:03.5]} 45. Bxa7 {[%clk 0:00:12.5]} 45...
Rb2 {[%clk 0:00:01.9]} 46. Bb8 {[%clk 0:00:09.5]} 46... Rb4 {[%clk 0:00:02.4]}
47. Be2 {[%clk 0:00:08.1]} 47... Rd4 {[%clk 0:00:01.2]} 48. d6 {[%clk
0:00:05.4]} 48... h6 {[%clk 0:00:01.5]} 49. Bb5+ {[%clk 0:00:05.2]} 49... Kc8
{[%clk 0:00:01.9]} 50. Bc7 {[%clk 0:00:05.8]} 50... Kb7 {[%clk 0:00:02.3]} 51.
Kg3 {[%clk 0:00:04.5]} 51... f6 {[%clk 0:00:02]} 52. Kf3 {[%clk 0:00:04.8]}
52... Rf4+ {[%clk 0:00:02]} 53. Kg3 {[%clk 0:00:05]} 53... Rd4 {[%clk
0:00:02.2]} 54. h3 {[%clk 0:00:05.7]} 54... Kc8 {[%clk 0:00:02.3]} 55. Kf3
{[%clk 0:00:06]} 55... Kb7 {[%clk 0:00:01.6]} 56. Ke3 {[%clk 0:00:06.6]} 56...
Rxd6 {[%clk 0:00:01.8]} 57. Bxd6 {[%clk 0:00:06.7]} 1-0